bitfinex-derivatives/quotes_ETHF0:USTF0_20220106
["timestamp","ask_amount","ask_price","bid_price","bid_amount"]
[1641434675146,1.92617706,3520.2,3520.1,0.229991]
[1641434675346,1.92617706,3520.2,3520.0,1.04083372]
[1641434676047,1.92617706,3520.2,3520.1,0.229991]
[1641434676248,2.00278606,3520.2,3520.0,1.04083372]
[1641434676447,1.92617706,3520.3,3520.0,1.04083372]
[1641434677447,1.92617706,3520.3,3520.1,0.229991]
[1641434677647,1.92617706,3520.3,3520.2,2.00479]
[1641434678449,1.92617706,3520.3,3520.2,3.14326478]
[1641434679152,2.00479,3521.1,3520.2,3.14326478]
[1641434679749,2.00479,3521.1,3520.6,2.00479]
[1641434680652,0.95175749,3521.4,3520.8,1.5]
[1641434680853,1.26900999,3521.7,3520.8,1.5]
[1641434680854,2.22076748,3521.7,3520.8,1.5]
[1641434681053,0.95175749,3521.7,3520.8,1.5]
[1641434681452,0.95175749,3521.7,3520.6,3.42402489]
[1641434681453,0.95175749,3521.7,3520.9,1.13559621]
[1641434681852,0.95175749,3521.7,3521.5,2.00479]
[1641434682053,0.076609,3521.6,3521.5,2.00479]
[1641434682253,0.95175749,3521.7,3521.5,2.234781]
[1641434682456,0.95175749,3521.7,3521.5,3.54097811]
[1641434682653,1.26900999,3522.0,3521.5,3.54097811]
[1641434682853,33.19045749,3522.4,3521.5,3.54097811]
[1641434682854,0.95175749,3522.4,3521.5,3.54097811]
[1641434683453,0.95175749,3522.4,3521.9,1.5]
[1641434683653,0.95175749,3522.4,3522.1,1.5]
[1641434683855,0.95175749,3522.4,3522.2,0.229991]
[1641434684054,0.95175749,3522.4,3522.3,1.5]
[1641434684257,1.26900999,3522.6,3522.3,1.5]
[1641434684455,2.40602531,3523.8,3522.5,2.9181219]
[1641434684655,2.40602531,3523.8,3522.8,1.5]
[1641434685056,2.40402531,3523.8,3522.8,1.5]
[1641434685356,2.40402531,3523.8,3523.2,1.41815206]
[1641434685555,2.40402531,3523.8,3523.5,1.5]
[1641434685755,2.40402531,3523.8,3523.7,2.00479]
[1641434686154,3.20521463,3524.1,3523.7,2.00479]
[1641434686356,3.20521463,3524.1,3523.7,3.05238882]
[1641434687555,3.20521463,3524.0,3523.7,3.05238882]
[1641434687757,0.132394,3524.2,3523.8,0.229991]
[1641434687958,1.5,3524.7,3523.8,0.229991]
[1641434688157,31.0178,3525.0,3523.8,0.229991]
[1641434688359,15.67479,3525.1,3523.8,0.229991]
[1641434688960,4.01229206,3524.6,3523.8,0.229991]
[1641434689160,3.20983365,3524.3,3523.8,0.229991]
[1641434689762,3.20983365,3524.3,3524.2,2.00479]
[1641434689962,3.20983365,3524.3,3524.2,2.234781]
[1641434690163,3.28644265,3524.3,3524.2,2.00479]
[1641434690363,3.20983365,3524.3,3524.2,2.00479]
[1641434690966,3.20983365,3524.3,3524.2,2.234781]
[1641434691367,4.91883665,3524.3,3523.7,3.05238882]
[1641434691564,3.41883665,3524.3,3523.7,1.04759882]
[1641434691765,2.00479,3524.1,3523.7,1.04759882]
[1641434692565,1.92586933,3523.9,3523.7,1.04759882]
[1641434692865,0.076609,3523.8,3523.7,1.04759882]
[1641434693866,2.53980916,3523.9,3523.7,1.04759882]
[1641434694068,2.40741516,3523.9,3523.7,1.27758982]
[1641434694769,2.48402416,3523.9,3523.7,1.27758982]
[1641434694970,2.40741516,3523.8,3523.7,1.27758982]
[1641434695970,2.48402416,3523.8,3523.7,1.04759882]
[1641434696372,2.40741516,3523.8,3523.7,1.27758982]
[1641434696771,2.40741516,3523.8,3523.7,1.04759882]
[1641434697173,2.40741516,3523.8,3523.7,1.27758982]
[1641434697771,2.40741516,3523.8,3523.7,3.28237982]
[1641434698171,2.48402416,3523.8,3523.7,3.05238882]
[1641434698372,0.076609,3523.8,3523.7,3.05238882]
[1641434698671,0.65121516,3523.9,3523.7,4.78237982]
[1641434698871,0.65121516,3523.9,3523.7,4.70016796]
[1641434699071,3.20983365,3524.1,3523.7,3.28237982]
[1641434699272,3.20983365,3524.3,3523.7,3.28237982]
[1641434699471,3.20983365,3524.3,3524.1,1.41781829]
[1641434699671,3.20983365,3524.3,3524.2,0.229991]
[1641434699873,3.20983365,3524.3,3524.2,2.00479]
[1641434700475,3.20983365,3524.3,3524.2,2.234781]
[1641434700877,1.92557205,3524.4,3524.2,2.234781]
[1641434704677,2.00218105,3524.4,3524.2,2.234781]
[1641434704879,2.00218105,3524.4,3524.2,2.00479]
[1641434705078,2.00218105,3524.4,3524.3,1.56200232]
[1641434705279,0.076609,3524.4,3524.3,1.56200232]
[1641434706079,0.209003,3524.4,3524.3,1.56200232]
[1641434706881,0.209003,3524.4,3524.3,0.96028785]
[1641434707081,2.64673322,3524.4,3524.2,2.00479]
[1641434708285,0.72116117,3524.4,3524.2,2.00479]
[1641434708883,0.51215817,3524.3,3524.2,2.00479]
[1641434710085,0.51215817,3524.3,3524.2,2.234781]
[1641434710283,0.51215817,3524.3,3524.2,0.29843851]
[1641434710783,2.99589819,3524.3,3524.2,0.29843851]
[1641434711884,0.58876717,3524.3,3524.2,0.29843851]
[1641434712086,0.58876717,3524.3,3524.1,1.20204943]
[1641434712486,1.632394,3524.2,3523.8,0.96028785]
[1641434712686,2.918808,3523.9,3523.0,1.92337237]
[1641434712884,0.132394,3523.8,3523.0,1.92337237]
[1641434713085,1.5,3523.7,3523.0,1.92337237]
[1641434713285,1.5,3523.7,3523.5,1.28199748]
[1641434713485,1.62782912,3523.6,3523.5,1.06329748]
[1641434713685,0.209003,3523.6,3523.5,1.06329748]
[1641434714086,2.213793,3523.6,3523.5,1.06329748]
[1641434714987,2.213793,3523.6,3523.0,2.83181059]
[1641434715388,5.05647319,3523.6,3523.0,0.90843822]
[1641434715587,4.92407919,3523.6,3523.4,1.5]
[1641434715790,4.92407919,3523.6,3523.5,0.229991]
[1641434715987,2.91928919,3523.6,3523.5,0.229991]
[1641434716389,3.34222765,3523.8,3523.5,0.229991]
[1641434716588,1.92574067,3523.9,3523.5,0.229991]
[1641434717190,2.05813467,3523.9,3523.5,0.229991]
[1641434717590,1.92574067,3523.9,3523.8,1.5]
[1641434717793,3.20958943,3524.2,3523.8,1.64789774]
[1641434717990,3.20958943,3524.2,3524.1,2.00479]
[1641434718591,2.64109791,3524.2,3524.1,2.234781]
[1641434719995,5.21462365,3525.0,3524.1,2.83667126]
[1641434720195,0.132394,3524.8,3524.2,0.99563448]
[1641434721195,0.132394,3524.8,3524.3,0.60189026]
[1641434721594,3.20983365,3525.2,3524.6,1.5]
[1641434721994,3.20983365,3525.2,3524.3,0.60189026]
[1641434722195,3.20983365,3525.1,3524.8,2.00479]
[1641434722395,3.20983365,3525.1,3524.9,0.229991]
[1641434722796,3.20983365,3525.1,3525.0,1.10156037]
[1641434723796,3.28644265,3525.1,3525.0,1.10156037]
[1641434724397,2.00479,3525.3,3525.0,1.33155137]
[1641434724597,0.076609,3525.2,3525.0,1.33155137]
[1641434724798,2.00479,3525.3,3525.0,1.33155137]
[1641434725601,0.076609,3525.2,3525.0,1.33155137]
[1641434725798,0.209003,3525.2,3525.0,1.10156037]
[1641434726199,0.209003,3525.2,3525.0,1.33155137]
[1641434726401,0.132394,3525.2,3525.0,1.33155137]
[1641434726698,0.132394,3525.2,3525.0,1.10156037]
[1641434727398,2.00479,3525.9,3525.0,2.60156037]
[1641434727598,2.00479,3525.9,3525.0,1.33155137]
[1641434728201,2.00479,3525.9,3525.3,2.00479]
[1641434728401,0.132394,3525.8,3525.3,2.00479]
[1641434734410,1.632394,3525.8,3525.3,2.00479]
[1641434737010,0.132394,3525.8,3525.3,2.00479]
[1641434739212,0.48454919,3525.7,3525.3,2.94383559]
[1641434739413,1.8826942,3525.6,3525.3,2.94383559]
[1641434739613,1.8826942,3525.6,3525.4,0.229991]
[1641434740415,1.8826942,3525.6,3525.4,1.77044427]
[1641434740614,2.36724339,3525.7,3525.4,1.77044427]
[1641434742017,1.8826942,3525.7,3525.4,1.16903659]
[1641434743219,0.076609,3525.6,3525.4,0.93904559]
[1641434743625,0.076609,3525.6,3525.2,1.27964963]
[1641434743825,0.076609,3525.6,3525.5,0.60134579]
[1641434744225,4.218583,3525.6,3525.5,0.60134579]
[1641434744426,4.141974,3525.6,3525.5,0.83133679]
[1641434744726,4.218583,3525.6,3525.5,0.60134579]
[1641434745025,4.218583,3525.6,3525.4,1.27964963]
[1641434745525,4.49412919,3525.6,3525.5,0.229991]
[1641434745725,4.49412919,3525.6,3525.2,0.95611175]
[1641434745928,4.57073819,3525.6,3525.2,0.95611175]
[1641434746326,4.49412919,3525.6,3525.4,1.41729985]
[1641434746526,0.48454919,3525.6,3525.5,0.229991]
[1641434748931,1.92443904,3525.8,3525.5,0.83136198]
[1641434749231,1.92443904,3525.9,3525.6,0.77537678]
[1641434749431,1.92443904,3525.9,3525.7,0.229991]
[1641434749831,4.35815775,3526.1,3525.7,0.229991]
[1641434749832,2.35336775,3526.1,3525.8,2.91702872]
[1641434750032,3.20983365,3526.4,3525.8,2.91702872]
[1641434750033,3.20983365,3526.4,3526.0,1.5]
[1641434750231,3.09638599,3526.6,3525.6,0.77537678]
[1641434750232,2.6118368,3526.6,3526.3,2.00479]
[1641434750433,5.81899901,3526.6,3526.4,0.229991]
[1641434750633,5.81899901,3526.6,3526.5,1.41679784]
[1641434751033,5.81899901,3526.6,3526.5,2.31941567]
[1641434751233,5.81899901,3526.6,3526.5,0.90261783]
[1641434751433,2.6118368,3526.6,3526.5,0.90261783]
[1641434752135,0.80189103,3526.6,3526.5,1.50398881]
[1641434752333,2.00479,3527.2,3526.5,1.50398881]
[1641434753538,2.00479,3527.2,3526.7,0.95381479]
[1641434755537,2.00479,3527.2,3526.7,2.45381479]
[1641434755738,2.00479,3527.2,3526.7,0.95381479]
[1641434757139,2.00479,3527.2,3526.8,0.95381479]
[1641434760749,2.00479,3527.2,3526.9,0.95381479]
[1641434760948,2.00479,3527.2,3527.0,0.229991]
[1641434761149,2.00479,3527.2,3527.1,1.02847378]
[1641434764655,2.00479,3527.2,3527.1,1.25846478]
[1641434764856,2.00479,3527.2,3527.1,1.02847378]
[1641434765458,2.081399,3527.2,3527.1,1.02847378]
[1641434766057,2.00479,3527.2,3527.1,1.25846478]
[1641434766259,2.00479,3527.2,3527.1,1.02847378]
[1641434766463,5.81824758,3527.8,3527.1,4.53326378]
[1641434766464,2.40471673,3527.4,3527.1,4.53326378]
[1641434766658,2.40471673,3527.4,3527.3,13.67]
[1641434766864,2.40471673,3527.4,3527.3,13.899991]
[1641434767358,3.20641078,3527.7,3527.3,12.399991]
[1641434768360,3.20641078,3527.7,3527.6,2.00479]
[1641434768562,1.92347532,3527.8,3527.6,2.234781]
[1641434768760,1.92347532,3527.8,3527.7,0.83375362]
[1641434769760,1.92347532,3527.9,3527.7,0.83375362]
[1641434770362,2.137184,3527.8,3527.7,0.83375362]
[1641434770562,2.213793,3527.8,3527.5,0.95499417]
[1641434770964,2.213793,3527.8,3527.6,0.229991]
[1641434771164,2.213793,3527.8,3527.5,0.95499417]
[1641434771365,2.213793,3527.8,3527.6,0.95499417]
[1641434772569,2.213793,3527.8,3527.7,1.39837589]
[1641434772967,2.137184,3527.8,3527.7,1.39837589]
[1641434773168,2.00479,3527.8,3527.7,1.62836689]
[1641434773367,2.00479,3527.8,3527.7,1.39837589]
[1641434773569,3.50479,3527.8,3527.3,0.95499417]
[1641434773769,1.5,3527.4,3527.1,0.93844661]
[1641434773968,0.132394,3527.3,3526.3,2.00479]
[1641434774369,2.00479,3527.2,3526.3,2.00479]
[1641434774572,2.00479,3527.2,3526.4,1.07498262]
[1641434774970,1.5,3526.6,3526.4,1.07498262]
[1641434775173,0.076609,3526.5,3525.7,0.94369331]
[1641434775369,1.5,3526.2,3525.7,0.94369331]
[1641434775570,1.5,3526.6,3525.4,2.43425546]
[1641434775771,1.41766151,3526.5,3525.4,1.15460583]
[1641434775969,1.5,3526.8,3525.4,1.15460583]
[1641434776371,2.00479,3525.7,3525.4,1.15460583]
[1641434776571,2.00479,3525.7,3525.5,0.229991]
[1641434778072,2.00479,3526.1,3525.5,0.229991]
[1641434778274,32.6831,3527.2,3525.5,0.229991]
[1641434778471,2.00479,3526.6,3525.8,2.00479]
[1641434779572,2.00479,3526.6,3526.1,1.41699057]
[1641434779777,2.00479,3526.6,3525.8,2.00479]
[1641434780474,2.00479,3526.6,3525.9,0.8227195]
[1641434781475,2.137184,3526.6,3525.9,0.8227195]
[1641434781877,2.00479,3526.6,3525.9,0.8227195]
[1641434784481,2.00479,3526.0,3525.9,0.8227195]
[1641434784679,2.081399,3526.0,3525.9,0.8227195]
[1641434784881,2.00479,3526.0,3525.9,1.0527105]
[1641434785380,2.00479,3526.0,3525.9,0.8227195]
[1641434785782,2.00479,3526.0,3525.9,1.0527105]
[1641434786884,2.00479,3526.0,3525.9,1.65392672]
[1641434787282,2.081399,3526.0,3525.9,1.42393572]
[1641434787681,2.00479,3526.0,3525.9,1.65392672]
[1641434793388,2.00479,3526.0,3525.9,2.61599178]
[1641434794188,2.00479,3526.0,3525.9,3.88974968]
[1641434795489,2.00479,3526.0,3525.9,2.61599178]
[1641434798090,2.00479,3526.0,3525.9,4.21677959]
[1641434798290,2.00479,3526.6,3525.9,4.21677959]
[1641434798790,2.00479,3526.6,3526.0,0.96206506]
[1641434799895,2.00479,3526.6,3526.4,0.95409368]
[1641434800101,0.076609,3526.5,3526.4,0.95409368]
[1641434800297,1.576609,3526.5,3526.1,1.87334113]
[1641434800595,3.50479,3526.2,3525.9,0.8227195]
[1641434800798,3.50479,3526.2,3525.8,1.60078781]
[1641434800994,0.209003,3526.1,3525.8,1.60078781]
[1641434801800,0.209003,3526.1,3525.2,2.49058407]
[1641434801997,0.209003,3526.1,3525.2,1.60078781]
[1641434802296,0.209003,3526.1,3525.8,0.95267184]
[1641434804099,1.5,3525.9,3525.2,1.60078781]
[1641434804298,1.5,3525.3,3525.2,1.60078781]
[1641434804497,5.586189,3525.3,3525.2,1.60078781]
[1641434804798,5.586189,3525.3,3524.9,1.90931874]
[1641434804998,4.218583,3525.3,3524.9,1.90931874]
[1641434805598,1.5,3525.0,3524.9,1.90931874]
[1641434805797,1.709003,3525.0,3524.9,1.90931874]
[1641434806398,1.709003,3525.0,3524.6,1.0482298]
[1641434806598,2.00479,3524.7,3524.6,1.0482298]
[1641434806797,2.213793,3524.7,3524.6,1.0482298]
[1641434807899,2.137184,3524.7,3524.6,1.2782208]
[1641434808202,2.00479,3524.7,3524.6,1.2782208]
[1641434808401,2.00479,3524.7,3524.6,2.6958381]
[1641434808601,2.00479,3525.3,3524.6,2.6958381]
[1641434809302,2.00479,3525.3,3524.6,1.2782208]
[1641434809704,0.132394,3525.2,3524.6,1.2782208]
[1641434810102,0.132394,3525.2,3524.7,1.90931874]
[1641434811103,0.132394,3525.2,3525.1,1.27412058]
[1641434811306,0.209003,3525.2,3525.1,1.27412058]
[1641434812209,0.076609,3525.2,3525.1,1.27412058]
[1641434814612,0.076609,3525.2,3524.6,2.95754854]
[1641434814813,0.076609,3525.2,3524.9,1.59231053]
[1641434815014,2.00479,3525.7,3525.0,0.229991]
[1641434815216,2.00479,3525.7,3525.3,1.41734404]
[1641434815613,2.00479,3525.7,3525.1,1.5]
[1641434816014,2.00479,3525.7,3525.3,2.91731993]
[1641434816216,2.00479,3525.7,3525.3,1.41731993]
[1641434816613,0.132394,3525.8,3525.3,3.42210993]
[1641434816817,2.00479,3526.1,3525.3,2.00479]
[1641434817215,0.132394,3526.0,3525.3,3.59710053]
[1641434817415,0.132394,3526.0,3525.5,1.27128963]
[1641434818216,2.00479,3526.1,3525.5,1.27128963]
[1641434818617,0.132394,3526.0,3525.5,1.27128963]
[1641434818818,0.132394,3526.0,3525.2,1.23506481]
[1641434819518,0.132394,3526.0,3525.3,0.96225867]
[1641434820620,2.00479,3525.4,3525.2,2.50635444]
[1641434820818,0.209003,3525.3,3524.9,1.59231053]
[1641434821218,0.132394,3525.3,3524.9,0.9538294]
[1641434821618,0.132394,3525.3,3525.0,0.87420613]
[1641434821818,0.076609,3525.2,3525.0,0.87420613]
[1641434823419,0.076609,3525.2,3525.1,1.18233951]
[1641434823619,1.576609,3525.2,3524.4,0.60135575]
[1641434823818,1.5,3524.5,3524.4,5.575e-05]
[1641434824022,0.076609,3524.5,3524.3,1.053e-05]
[1641434824521,0.132394,3524.4,3524.3,1.053e-05]
[1641434824720,4.141974,3524.4,3524.3,1.053e-05]
[1641434824921,4.141974,3524.4,3523.5,3.17897429]
[1641434825320,4.141974,3524.4,3523.8,0.80180767]
[1641434825521,1.5,3524.1,3523.8,0.80180767]
[1641434825723,1.5,3523.9,3523.8,0.80180767]
[1641434826322,1.5,3523.9,3523.8,7.67e-06]
[1641434826723,15.751399,3523.9,3523.8,7.67e-06]
[1641434826922,15.751399,3523.9,3522.7,0.96619909]
[1641434827322,2.081399,3523.9,3522.7,0.96619909]
[1641434828723,2.00479,3522.8,3522.7,0.96619909]
[1641434828923,2.00479,3522.8,3522.7,1.19619009]
[1641434830424,2.00479,3523.1,3522.7,1.19619009]
[1641434831224,2.00479,3523.4,3522.8,1.41832102]
[1641434831625,2.00479,3523.4,3522.7,0.96619909]
[1641434832424,2.137184,3523.4,3522.7,0.96619909]
[1641434832624,2.137184,3523.4,3522.9,2.00479]
[1641434833124,2.00479,3523.4,3522.9,2.00479]
[1641434833427,0.07960886,3523.4,3522.9,2.00479]
[1641434835727,0.132394,3523.3,3522.9,2.00479]
[1641434836926,0.07960886,3523.4,3522.9,2.00479]
[1641434837327,0.21200286,3523.4,3522.9,2.00479]
[1641434837528,0.21200286,3523.4,3522.7,0.96619909]
[1641434838432,1.71200286,3523.4,3522.7,0.96619909]
[1641434838828,0.21200286,3523.4,3522.7,0.96619909]
[1641434839228,1.5,3523.3,3522.7,0.96619909]
[1641434839528,0.132394,3523.2,3522.7,0.96619909]
[1641434839929,1.5,3523.1,3522.3,2.00479]
[1641434840130,0.132394,3523.0,3522.3,2.00479]
[1641434840729,2.00479,3522.9,3522.3,2.00479]
[1641434840932,2.137184,3522.9,3522.4,0.96301703]
[1641434842932,2.00479,3522.9,3522.4,0.96301703]
[1641434844132,0.07960886,3523.4,3522.4,0.96301703]
[1641434845334,0.07960886,3523.4,3522.4,2.46301703]
[1641434845734,0.07960886,3523.4,3522.5,0.96301703]
[1641434846234,2.00479,3523.7,3523.0,1.5]
[1641434846434,0.9554748,3524.2,3523.5,1.5]
[1641434846633,0.9554748,3524.5,3523.1,0.96301703]
[1641434846834,0.9554748,3524.5,3523.9,2.00479]
[1641434847435,0.9554748,3524.5,3524.0,0.7471795]
[1641434848135,2.00479,3524.7,3524.0,0.7471795]
[1641434848734,2.00479,3524.7,3524.1,1.4178203]
[1641434848935,2.00479,3524.7,3524.0,0.7471795]
[1641434850736,3.637184,3524.7,3524.0,0.7471795]
[1641434851535,1.5,3524.4,3524.0,0.7471795]
[1641434851735,1.41853227,3524.3,3523.5,2.96020426]
[1641434851935,0.132394,3524.2,3523.5,0.95541426]
[1641434852136,0.132394,3524.2,3523.1,0.95541426]
[1641434852735,2.00479,3523.7,3523.2,0.971603]
[1641434852935,2.137184,3523.7,3523.2,0.971603]
[1641434854839,2.00479,3523.3,3523.2,0.971603]
[1641434855039,2.00479,3523.3,3523.2,1.201594]
[1641434855842,2.37375961,3524.9,3523.2,1.201594]
[1641434856045,0.9554748,3524.4,3523.2,1.201594]
[1641434856841,2.9602648,3524.4,3523.5,2.00479]
[1641434857041,0.132394,3524.3,3523.5,2.00479]
[1641434857742,2.00479,3524.4,3523.5,2.00479]
[1641434859944,2.00479,3524.4,3524.0,1.5]
[1641434860144,2.00479,3524.7,3523.6,2.38062312]
[1641434860342,2.00479,3524.7,3523.6,1.41800124]
[1641434860544,2.00479,3524.7,3523.7,0.96260967]
[1641434860744,2.00479,3524.7,3524.1,2.00479]
[1641434860944,2.00479,3524.7,3524.2,0.99582651]
[1641434871163,0.9554748,3525.2,3524.2,0.99582651]
[1641434872865,0.9554748,3525.2,3524.5,2.00479]
[1641434875166,2.5878688,3525.2,3524.5,2.00479]
[1641434875667,1.0878688,3525.2,3524.5,2.00479]
[1641434876068,0.9554748,3524.8,3524.5,2.00479]
[1641434876271,0.9554748,3524.8,3524.6,0.229991]
[1641434878171,0.9554748,3524.9,3524.6,0.229991]
[1641434879274,0.076609,3524.8,3524.6,0.229991]
[1641434879475,0.9554748,3524.9,3524.6,0.229991]
[1641434879676,0.9554748,3525.0,3524.6,0.229991]
[1641434880176,0.9554748,3525.0,3524.5,2.96020426]
[1641434881677,0.9554748,3524.9,3524.6,0.96257032]
[1641434881877,0.9554748,3524.9,3524.7,0.229991]
[1641434882483,0.076609,3524.8,3524.5,2.96020426]
[1641434882678,1.5,3524.6,3524.5,2.96020426]
[1641434882878,1.632394,3524.6,3524.2,1.26892219]
[1641434883081,1.5,3524.3,3524.2,1.26892219]
[1641434883280,1.576609,3524.3,3524.2,1.26892219]
[1641434883480,1.709003,3524.3,3524.2,1.26892219]
[1641434884481,1.709003,3524.3,3523.7,1.90338328]
[1641434884683,1.5,3524.0,3523.6,1.27767158]
[1641434884881,0.132394,3523.9,3523.6,1.27767158]
[1641434885084,0.076609,3523.8,3523.6,1.27767158]
[1641434885481,0.132394,3523.7,3523.6,1.27767158]
[1641434885881,1.632394,3523.7,3523.5,2.00479]
[1641434886083,0.076609,3523.6,3523.5,2.00479]
[1641434886585,1.576609,3523.6,3523.5,2.00479]
[1641434886783,0.076609,3523.6,3523.5,2.00479]
[1641434888487,0.67386077,3523.6,3523.5,2.00479]
[1641434890691,0.076609,3523.6,3523.5,2.00479]
[1641434892192,0.67837381,3523.6,3523.5,2.00479]
[1641434893294,0.67837381,3523.6,3523.1,2.00479]
[1641434893594,0.132394,3523.5,3523.1,2.00479]
[1641434893994,1.632394,3523.5,3523.1,2.00479]
[1641434894193,0.132394,3523.5,3523.1,2.00479]
[1641434894895,0.60176481,3523.4,3523.2,0.56960127]
[1641434895096,0.209003,3523.3,3523.2,0.56960127]
[1641434895797,0.132394,3523.3,3523.2,0.56960127]
[1641434895994,0.209003,3523.3,3523.2,0.56960127]
[1641434896696,0.73415881,3523.3,3523.2,0.79959227]
[1641434896901,0.81076781,3523.3,3523.2,0.56960127]
[1641434897396,0.73415881,3523.3,3523.2,0.56960127]
[1641434897896,0.81076781,3523.3,3523.2,0.56960127]
[1641434898297,0.73415881,3523.3,3523.2,0.79959227]
[1641434898498,0.73415881,3523.3,3523.2,0.56960127]
[1641434898998,0.81076781,3523.3,3523.2,0.56960127]
[1641434899600,0.73415881,3523.3,3523.2,0.79959227]
[1641434899900,0.73415881,3523.3,3523.2,0.56960127]
[1641434900104,0.81076781,3523.3,3523.2,0.56960127]
[1641434900301,0.81076781,3523.3,3522.9,1.28386867]
[1641434900706,0.73415881,3523.3,3522.9,1.28386867]
[1641434900903,0.60176481,3523.3,3522.9,1.28386867]
[1641434901203,2.60655481,3523.2,3522.9,1.28386867]
[1641434901403,2.60655481,3523.2,3523.0,0.229991]
[1641434902605,2.68316381,3523.2,3522.9,1.28386867]
[1641434902803,2.60655481,3523.2,3523.0,0.229991]
[1641434903004,2.60655481,3523.2,3522.9,1.28386867]
[1641434903005,0.60176481,3523.1,3522.9,1.28386867]
[1641434903204,0.60176481,3523.1,3523.0,1.28386867]
[1641434903404,0.81076781,3523.1,3523.0,1.28386867]
[1641434903604,0.73415881,3523.1,3523.0,1.51385967]
[1641434904605,0.73415881,3523.1,3523.0,0.229991]
[1641434905008,0.81076781,3523.1,3522.9,1.28386867]
[1641434905211,0.73415881,3523.1,3523.0,0.229991]
[1641434905507,0.73415881,3523.1,3523.0,0.79959227]
[1641434905808,0.73415881,3523.1,3523.0,0.56960127]
[1641434906108,0.81076781,3523.1,3523.0,0.56960127]
[1641434907108,0.73415881,3523.1,3523.0,0.56960127]
[1641434907811,0.73415881,3523.1,3523.0,0.229991]
[1641434908110,0.81076781,3523.1,3522.9,1.28386867]
[1641434908312,0.73415881,3523.1,3522.9,1.28386867]
[1641434908512,0.73415881,3523.1,3523.0,0.229991]
[1641434908710,0.132394,3523.1,3523.0,0.229991]
[1641434909112,0.209003,3523.1,3522.6,0.91589898]
[1641434909512,0.132394,3523.1,3522.7,0.96308828]
[1641434910416,2.00479,3523.2,3522.7,0.96308828]
[1641434911114,2.00479,3523.2,3522.6,0.91589898]
[1641434911615,0.132394,3523.1,3522.6,0.91589898]
[1641434918319,0.132394,3523.1,3522.5,2.00479]
[1641434918320,1.5,3522.9,3522.5,2.00479]
[1641434918519,0.132394,3522.8,3522.5,2.00479]
[1641434918723,0.076609,3522.7,3522.5,2.00479]
[1641434919019,1.632394,3522.6,3521.7,0.95306615]
[1641434919220,1.5,3522.4,3521.7,0.95306615]
[1641434919618,2.00479,3522.0,3521.7,0.95306615]
[1641434919818,0.076609,3521.9,3521.7,0.95306615]
[1641434920218,0.076609,3521.9,3521.4,1.28386867]
[1641434920219,1.632394,3521.8,3521.4,1.28386867]
[1641434920418,1.632394,3521.8,3521.2,0.95306615]
[1641434920419,1.5,3521.7,3521.2,0.95306615]
[1641434920619,0.132394,3521.7,3521.2,0.95306615]
[1641434921519,2.00479,3521.6,3521.2,0.95306615]
[1641434921923,2.00479,3522.0,3521.3,1.5]
[1641434922122,0.95529595,3522.5,3521.3,2.46339956]
[1641434922319,0.95529595,3522.5,3521.4,1.73373669]
[1641434922721,0.95529595,3522.5,3521.5,0.96339956]
[1641434923522,1.27377836,3522.8,3521.5,0.96339956]
[1641434923724,1.5,3522.9,3522.2,2.00479]
[1641434924226,13.67,3522.9,3522.2,2.00479]
[1641434924424,0.132394,3522.8,3522.2,2.00479]
[1641434924625,1.5,3522.7,3522.2,2.00479]
[1641434924824,0.132394,3522.6,3522.2,2.00479]
[1641434925227,1.55162083,3522.6,3522.2,2.00479]
[1641434925424,0.132394,3522.6,3522.2,2.00479]
[1641434925824,0.132394,3522.6,3521.8,2.00479]
[1641434925825,12.17,3522.5,3521.8,2.00479]
[1641434926025,0.132394,3522.4,3521.8,2.00479]
[1641434926227,1.632394,3522.4,3521.8,2.00479]
[1641434926625,1.5,3522.2,3521.8,2.00479]
[1641434926828,0.132394,3522.1,3521.8,2.00479]
[1641434927025,0.076609,3522.0,3521.8,2.00479]
[1641434928027,1.576609,3522.0,3521.8,2.234781]
[1641434928226,1.5,3522.0,3521.8,2.234781]
[1641434928428,1.55182631,3522.1,3521.8,2.234781]
[1641434928627,1.576609,3522.0,3521.8,2.234781]
[1641434928829,0.132394,3521.9,3521.8,2.00479]
[1641434929027,0.73442832,3521.9,3521.8,2.00479]
[1641434930230,0.81103732,3521.9,3521.8,2.00479]
[1641434930430,0.73442832,3521.9,3521.8,2.234781]
[1641434930832,0.73442832,3521.9,3521.8,2.00479]
[1641434931232,0.81103732,3521.9,3521.8,2.00479]
[1641434938037,0.73442832,3521.9,3521.8,2.00479]
[1641434938645,0.81103732,3521.9,3521.8,2.00479]
[1641434939641,0.209003,3521.9,3521.8,2.00479]
[1641434941846,0.209003,3521.9,3521.4,2.00479]
[1641434942347,0.209003,3521.9,3521.5,0.96340752]
[1641434942950,0.209003,3521.9,3521.4,2.00479]
[1641434943851,0.209003,3521.9,3521.5,0.9634154]
[1641434945251,2.00479,3522.0,3521.5,0.9634154]
[1641434945452,0.95663087,3522.5,3521.9,1.5]
[1641434945652,0.95663087,3522.5,3522.3,1.5]
[1641434945852,0.95663087,3522.5,3522.4,0.229991]
[1641434946258,0.95663087,3522.5,3522.4,4.239571]
[1641434946459,0.95663087,3522.5,3522.4,5.28251736]
[1641434947759,3.40914133,3523.3,3522.4,5.28251736]
[1641434947760,4.3657722,3523.3,3522.4,5.28251736]
[1641434947961,2.45663087,3523.3,3522.4,5.28251736]
[1641434948159,0.132394,3523.2,3522.4,5.28251736]
[1641434948760,12.302394,3523.2,3522.4,5.05252636]
[1641434948960,13.25902487,3523.2,3522.4,5.05252636]
[1641434949161,13.25902487,3523.2,3522.4,2.00479]
[1641434949961,1.5,3522.6,3522.4,2.00479]
[1641434950161,0.209003,3522.5,3521.5,0.9561617]
[1641434950362,2.213793,3522.5,3521.7,2.00479]
[1641434950662,12.17,3522.4,3521.7,2.00479]
[1641434950864,12.17,3522.4,3521.4,2.88225184]
[1641434951060,0.132394,3522.3,3521.4,2.88225184]
[1641434951264,0.132394,3522.3,3521.5,0.96337934]
[1641434951563,0.132394,3522.3,3521.4,2.88225184]
[1641434951861,0.132394,3522.3,3521.4,2.00479]
[1641434952065,1.5,3521.6,3521.2,0.9561617]
[1641434952363,15.67479,3521.3,3521.2,0.9561617]
[1641434952563,15.751399,3521.3,3520.9,2.24003037]
[1641434952764,1.5,3521.0,3520.9,0.9561617]
[1641434953263,0.132394,3521.0,3520.9,0.9561617]